bitfinex/quotes_BTCUSD_20240826
["timestamp","ask_amount","ask_price","bid_price","bid_amount"]
[1724709314770,0.0009053,63323.0,63322.0,1.7986331]
[1724709315179,0.0009053,63323.0,63322.0,1.8126331]
[1724709315597,0.0009053,63323.0,63322.0,1.7896331]
[1724709315802,0.0009053,63323.0,63322.0,1.8126331]
[1724709321122,0.0004,63339.0,63328.0,0.00019011]
[1724709321288,0.0004,63339.0,63338.0,0.157883]
[1724709321521,0.0004,63339.0,63338.0,1.15344982]
[1724709321733,0.0004,63339.0,63338.0,1.78498182]
[1724709322058,0.0004,63339.0,63338.0,1.78182501]
[1724709322701,0.0004,63339.0,63338.0,1.79582501]
[1724709324702,0.0004,63339.0,63338.0,1.80982501]
[1724709325821,0.0004,63339.0,63338.0,1.8151787]
[1724709326019,0.0004,63339.0,63338.0,1.7334787]
[1724709326220,0.0004,63339.0,63338.0,1.3947127]
[1724709326397,0.0004,63339.0,63338.0,1.4762127]
[1724709327133,0.0004,63339.0,63338.0,1.4622127]
[1724709327536,0.0004,63339.0,63338.0,1.4762127]
[1724709327898,0.0004,63339.0,63338.0,1.4622127]
[1724709328101,0.0004,63339.0,63338.0,1.4482127]
[1724709328614,0.0004,63339.0,63338.0,1.4622127]
[1724709329026,0.0004,63339.0,63338.0,1.4762127]
[1724709329477,0.0004,63339.0,63338.0,1.4622127]
[1724709329654,0.0004,63339.0,63338.0,1.4762127]
[1724709330505,0.0013053,63339.0,63338.0,1.4762127]
[1724709330747,0.0013053,63339.0,63338.0,1.7529064]
[1724709330946,0.0013053,63339.0,63338.0,1.7759064]
[1724709331228,0.0013053,63339.0,63338.0,2.0916724]
[1724709339289,0.0013053,63339.0,63338.0,1.8149787]
[1724709339518,0.0013053,63339.0,63338.0,2.0916724]
[1724709340193,0.0013053,63339.0,63338.0,1.8149787]
[1724709340834,0.0013053,63339.0,63338.0,1.7919787]
[1724709341032,0.0013053,63339.0,63338.0,1.3947127]
[1724709344386,0.0013053,63339.0,63338.0,1.0789467]
[1724709346032,0.06361519,63339.0,63338.0,0.29123669]
[1724709346237,0.06361519,63339.0,63338.0,0.13335369]
[1724709346671,0.23332709,63339.0,63338.0,0.028]
[1724709346849,0.23332709,63339.0,63335.0,0.000822]
[1724709346850,0.157888,63336.0,63335.0,0.000822]
[1724709347028,0.219388,63336.0,63335.0,0.00614803]
[1724709347210,0.22019789,63336.0,63335.0,0.000822]
[1724709347419,0.23202932,63336.0,63335.0,0.000822]
[1724709348211,0.54780532,63336.0,63335.0,0.000822]
[1724709348586,0.53597389,63336.0,63335.0,0.000822]
[1724709349967,0.53897389,63336.0,63335.0,0.000822]
[1724709350172,0.53597389,63336.0,63335.0,0.000822]
[1724709350634,1.52081291,63336.0,63335.0,0.000822]
[1724709350871,0.47454089,63327.0,63309.0,0.315906]
[1724709350999,0.157931,63319.0,63313.0,0.157944]
[1724709351198,0.00080989,63312.0,63309.0,0.20773134]
[1724709351523,0.00080989,63312.0,63310.0,0.15617801]
[1724709351744,0.00080989,63310.0,63309.0,0.00850877]
[1724709351945,0.00080989,63310.0,63309.0,0.00550877]
[1724709352183,0.00080989,63319.0,63318.0,0.157932]
[1724709352308,0.0635,63320.0,63314.0,0.395383]
[1724709352309,0.06430989,63320.0,63314.0,0.395383]
[1724709352525,0.00080989,63318.0,63317.0,0.157934]
[1724709352771,0.00080989,63318.0,63317.0,0.62998301]
[1724709353801,0.00280989,63318.0,63317.0,0.62998301]
[1724709354003,0.00480989,63318.0,63317.0,0.31411301]
[1724709354827,0.00480989,63318.0,63317.0,0.15617801]
[1724709355703,0.00480989,63318.0,63317.0,0.31411301]
[1724709356344,0.00080989,63316.0,63315.0,0.00543044]
[1724709356561,0.00080989,63313.0,63312.0,0.157947]
[1724709356796,0.00080989,63313.0,63312.0,0.257947]
[1724709357675,0.00080989,63313.0,63312.0,0.26163201]
[1724709357676,0.06430989,63313.0,63312.0,0.26163201]
[1724709357899,0.06430989,63313.0,63312.0,0.105]
[1724709358051,0.06430989,63313.0,63312.0,0.005]
[1724709358261,0.22225489,63313.0,63312.0,0.005]
[1724709358628,0.22225489,63313.0,63312.0,0.002]
[1724709358873,0.53814489,63313.0,63312.0,0.002]
[1724709359435,0.22225489,63313.0,63312.0,0.004]
[1724709359640,0.53814489,63313.0,63312.0,0.004]
[1724709359912,0.85403489,63313.0,63312.0,0.004]
[1724709360120,0.85403489,63313.0,63312.0,0.002]
[1724709360499,0.22425489,63313.0,63312.0,0.002]
[1724709360702,0.00080989,63312.0,63311.0,0.000822]
[1724709360905,0.15875689,63312.0,63311.0,0.000822]
[1724709361868,0.00080989,63312.0,63311.0,0.000822]
[1724709362861,0.00080989,63312.0,63311.0,0.158772]
[1724709363766,0.00061986,63312.0,63311.0,0.158772]
[1724709364166,0.00261986,63312.0,63311.0,0.474672]
[1724709365594,0.00061986,63312.0,63311.0,0.474672]
[1724709365768,0.00061986,63312.0,63311.0,0.476672]
[1724709365984,0.00061986,63312.0,63311.0,0.478672]
[1724709366277,0.00061986,63312.0,63311.0,0.792572]
[1724709366575,0.00061986,63312.0,63311.0,0.477672]
[1724709366709,0.00061986,63312.0,63311.0,0.480672]
[1724709368064,0.00061986,63312.0,63311.0,0.164772]
[1724709368941,0.00061986,63312.0,63311.0,0.480672]
[1724709369144,0.00061986,63312.0,63311.0,0.164772]
[1724709371432,0.00061986,63312.0,63311.0,0.006822]
[1724709371645,0.00061986,63312.0,63311.0,0.164772]
[1724709373695,0.00061986,63312.0,63311.0,0.006822]
[1724709374995,0.00061986,63312.0,63311.0,0.164772]
[1724709376232,0.00061986,63312.0,63311.0,0.006822]
[1724709376846,0.00061986,63312.0,63311.0,0.164772]
[1724709378037,0.00061986,63312.0,63311.0,0.006822]
[1724709378273,0.00061986,63312.0,63311.0,0.164772]
[1724709381241,0.00152626,63312.0,63311.0,0.164772]
[1724709382590,0.00152626,63312.0,63311.0,0.006822]
[1724709383706,0.00152626,63312.0,63311.0,0.164772]
[1724709385428,0.0009064,63312.0,63311.0,1.51756732]
[1724709386174,0.0009064,63312.0,63311.0,1.61756732]
[1724709387064,0.0009064,63312.0,63311.0,1.95646732]
[1724709387496,0.00071637,63312.0,63311.0,1.95646732]
[1724709388071,0.00071637,63312.0,63311.0,1.95346732]
[1724709388472,0.00071637,63312.0,63311.0,1.95446732]
[1724709388864,0.00071637,63312.0,63311.0,1.96146732]
[1724709389267,0.00071637,63312.0,63311.0,1.95746732]
[1724709390216,0.00071637,63312.0,63311.0,2.12308422]
[1724709390592,0.00071637,63312.0,63311.0,2.13008422]
[1724709391753,0.00071637,63312.0,63311.0,2.11608422]
[1724709392194,0.00071637,63312.0,63311.0,2.13208422]
[1724709392809,0.00071637,63312.0,63311.0,2.14608422]
[1724709393564,0.00071637,63312.0,63311.0,2.13808422]
[1724709394548,0.00071637,63312.0,63311.0,2.15208422]
[1724709394754,0.00071637,63312.0,63311.0,2.13008422]
[1724709395367,0.00071637,63312.0,63311.0,2.14408422]
[1724709395667,0.00071637,63312.0,63311.0,2.13008422]
[1724709395993,0.00071637,63312.0,63311.0,2.14408422]
[1724709396755,0.00071637,63312.0,63311.0,2.13008422]
[1724709397080,0.00071637,63312.0,63311.0,2.14408422]
[1724709397339,0.00061986,63326.0,63325.0,0.0756]
[1724709397487,0.06701986,63326.0,63325.0,0.31409301]
[1724709397691,0.06701986,63326.0,63325.0,0.62992401]
[1724709397895,0.06701986,63326.0,63325.0,0.94575501]
[1724709398484,0.00061986,63326.0,63325.0,0.95275501]
[1724709398705,0.00061986,63326.0,63325.0,0.95975501]
[1724709400636,0.00061986,63326.0,63325.0,0.96512951]
[1724709400982,0.00061986,63326.0,63325.0,0.64929851]
[1724709401617,0.00061986,63326.0,63325.0,0.96512951]
[1724709401849,0.00061986,63326.0,63325.0,0.64929851]
[1724709404553,0.00061986,63326.0,63325.0,0.72489851]
[1724709404882,0.00061986,63326.0,63325.0,1.04072951]
[1724709406113,0.00152626,63326.0,63325.0,1.04072951]
[1724709411139,0.00152626,63326.0,63325.0,1.14072951]
[1724709412019,0.00152626,63326.0,63325.0,1.25117175]
[1724709413430,0.00152626,63326.0,63325.0,1.56700275]
[1724709415619,0.00152626,63326.0,63325.0,1.14072951]
[1724709415858,0.00152626,63326.0,63325.0,1.25117175]
[1724709416032,0.00152626,63326.0,63325.0,1.56700275]
[1724709416874,0.00152626,63326.0,63325.0,1.63250275]
[1724709417946,0.00152626,63326.0,63325.0,1.62550275]
[1724709418155,0.0009064,63326.0,63325.0,1.61850275]
[1724709418364,0.0009064,63326.0,63325.0,1.63650275]
[1724709419283,0.00152626,63326.0,63325.0,1.63650275]
[1724709419501,0.0009064,63326.0,63325.0,1.63650275]
[1724709421422,0.00152626,63326.0,63325.0,1.63650275]
[1724709421639,0.0009064,63326.0,63325.0,1.63650275]
[1724709421841,0.00152626,63326.0,63325.0,1.63650275]
[1724709422152,0.0009064,63326.0,63325.0,1.63650275]
[1724709425166,0.0009064,63326.0,63325.0,1.95233375]
[1724709425391,0.0009064,63326.0,63325.0,1.63650275]
[1724709425770,0.0009064,63326.0,63325.0,1.95233375]
[1724709427023,0.0009064,63326.0,63325.0,1.97533375]
[1724709429244,0.0009064,63326.0,63325.0,1.95733375]
[1724709429419,0.0009064,63326.0,63325.0,1.97133375]
[1724709429619,0.0009064,63326.0,63325.0,1.98533375]
[1724709432129,0.0009064,63326.0,63325.0,1.97133375]
[1724709432473,0.0009064,63326.0,63325.0,1.98533375]
[1724709432693,0.0009064,63326.0,63325.0,1.97133375]
[1724709432895,0.0009064,63326.0,63325.0,1.95733375]
[1724709433091,0.0009064,63326.0,63325.0,1.98533375]
[1724709433719,0.0009064,63326.0,63325.0,1.97133375]
[1724709434053,0.0009064,63326.0,63325.0,1.98533375]
[1724709434341,0.0009064,63326.0,63325.0,2.30116475]
[1724709434542,0.0009064,63326.0,63325.0,1.98533375]
[1724709434748,0.0009064,63326.0,63325.0,2.30116475]
[1724709434971,0.0009064,63326.0,63325.0,1.98533375]
[1724709448250,0.0009064,63326.0,63325.0,2.07646264]
[1724709453034,0.0009064,63326.0,63325.0,2.12371033]
[1724709454915,0.0009064,63326.0,63325.0,2.14733418]
[1724709455325,0.0009064,63326.0,63325.0,2.16479176]
[1724709456397,0.0009064,63326.0,63325.0,2.09392022]
[1724709458151,0.0009064,63326.0,63325.0,2.16488644]
[1724709458299,0.0009064,63326.0,63325.0,2.09392022]
[1724709459298,0.0009064,63326.0,63325.0,2.1884156]
[1724709459944,0.0009064,63326.0,63325.0,2.1229156]
[1724709460115,0.0009064,63326.0,63325.0,2.02842022]
[1724709461188,0.0009064,63326.0,63325.0,2.14653945]
[1724709462556,0.0009064,63326.0,63325.0,2.02842022]
[1724709462743,0.0009064,63326.0,63325.0,2.09947701]
[1724709462975,0.0009064,63326.0,63325.0,2.08201943]
[1724709463104,0.0009064,63326.0,63325.0,2.01096264]
[1724709463310,0.0009064,63326.0,63325.0,2.08201943]
[1724709464986,0.0009064,63326.0,63325.0,1.91983375]
[1724709465327,0.0009064,63326.0,63325.0,1.58100275]
[1724709465535,0.0635064,63326.0,63325.0,1.58100275]
[1724709465741,0.0635064,63326.0,63325.0,1.50540275]
[1724709466523,0.0635064,63326.0,63325.0,1.39496051]
[1724709466834,0.0635064,63326.0,63325.0,1.50540275]
[1724709467466,0.06412626,63326.0,63325.0,0.77374075]
[1724709468076,0.06412626,63326.0,63325.0,0.74574075]
[1724709468322,0.06412626,63326.0,63325.0,0.77374075]
[1724709468732,0.06412626,63326.0,63325.0,0.74574075]
[1724709468947,0.06412626,63326.0,63325.0,0.75574075]
[1724709469368,0.06412626,63326.0,63325.0,0.84574075]
[1724709469572,0.06412626,63326.0,63325.0,0.85274075]
[1724709469952,0.06412626,63326.0,63325.0,1.16857175]
[1724709470187,0.06412626,63326.0,63325.0,0.86174075]
[1724709470904,0.06412626,63326.0,63325.0,1.16857175]
[1724709471277,0.06412626,63326.0,63325.0,0.85274075]
[1724709471638,0.06412626,63326.0,63325.0,1.17557175]
[1724709473691,0.06412626,63326.0,63325.0,0.43346751]
[1724709473903,0.37995226,63326.0,63325.0,0.0193745]
[1724709474280,0.85369126,63326.0,63325.0,0.014]
[1724709474492,1.16951726,63326.0,63325.0,0.014]
[1724709474705,1.24033763,63326.0,63325.0,0.014]
[1724709474920,0.79022186,63323.0,63322.0,0.0001901]
[1724709475136,1.34862045,63323.0,63322.0,0.0001901]
[1724709475353,1.2778051,63323.0,63322.0,0.0001901]
[1724709475547,1.72256043,63323.0,63322.0,0.0001901]
[1724709475953,0.21986486,63313.0,63312.0,0.05000805]
[1724709476166,0.53575486,63313.0,63312.0,0.05000805]
[1724709476343,0.53575486,63313.0,63312.0,0.000824]
[1724709476574,0.85164486,63313.0,63312.0,0.000824]
[1724709477400,0.9620871,63313.0,63312.0,0.000824]
[1724709477605,0.9640871,63313.0,63312.0,0.000824]
[1724709478018,0.9670871,63313.0,63312.0,0.000824]
[1724709478435,0.9640871,63313.0,63312.0,0.000824]
[1724709478641,0.9670871,63313.0,63312.0,0.000824]
[1724709479067,1.2839771,63313.0,63312.0,0.000824]
[1724709479854,1.2819771,63313.0,63312.0,0.000824]
[1724709480055,1.43815511,63313.0,63312.0,0.000824]
[1724709480217,1.43915511,63313.0,63312.0,0.001824]
[1724709480652,1.43915511,63313.0,63312.0,0.000824]
[1724709480653,1.48518441,63313.0,63312.0,0.000824]
[1724709481023,1.48618441,63313.0,63312.0,0.001824]
[1724709481169,0.15796,63307.0,63306.0,0.000823]
[1724709481375,0.61582224,63307.0,63306.0,0.000823]
[1724709481722,1.2482821,63307.0,63306.0,0.000823]
[1724709482722,1.259092,63307.0,63306.0,0.001823]
[1724709483272,1.248092,63307.0,63306.0,0.000823]
[1724709483483,1.254092,63307.0,63306.0,0.001823]
[1724709483968,1.248092,63307.0,63306.0,0.000823]
[1724709484172,1.254092,63307.0,63306.0,0.001823]
[1724709484797,1.248092,63307.0,63306.0,0.001823]
[1724709485002,1.254092,63307.0,63306.0,0.001823]
[1724709485211,1.260092,63307.0,63306.0,0.001823]
[1724709485412,1.266092,63307.0,63306.0,0.002823]
[1724709485811,1.260092,63307.0,63306.0,0.001823]
[1724709486015,1.266092,63307.0,63306.0,0.002823]
[1724709486224,1.260092,63307.0,63306.0,0.001823]
[1724709486638,1.266092,63307.0,63306.0,0.002823]
[1724709487169,1.260092,63307.0,63306.0,0.001823]
[1724709487387,1.260092,63307.0,63306.0,0.002823]
[1724709487603,1.266092,63307.0,63306.0,0.002823]
[1724709493788,1.39527644,63307.0,63306.0,0.002823]
[1724709493990,1.266092,63307.0,63306.0,0.002823]
[1724709496146,1.74019001,63307.0,63306.0,0.002823]
[1724709497133,1.73419001,63307.0,63306.0,0.001823]
[1724709497954,1.72219001,63307.0,63306.0,0.000823]
[1724709498193,1.73619001,63307.0,63306.0,0.001823]
[1724709499061,1.75019001,63307.0,63306.0,0.002823]
[1724709502098,1.90632169,63307.0,63306.0,0.002823]
[1724709502524,1.75019001,63307.0,63306.0,0.002823]
[1724709504383,1.75019001,63307.0,63292.0,0.12971866]
[1724709504384,0.534585,63293.0,63292.0,0.12971866]
[1724709504684,0.47460486,63293.0,63292.0,0.12971866]
[1724709504904,0.47460486,63293.0,63292.0,0.0798]
[1724709504905,0.79059486,63293.0,63292.0,0.0798]
[1724709508066,0.9010371,63293.0,63292.0,0.0798]
[1724709511374,0.9010371,63293.0,63292.0,0.080624]
[1724709512515,0.9010371,63293.0,63292.0,0.000824]
[1724709513802,0.79059486,63293.0,63292.0,0.080624]
[1724709514016,0.00061986,63293.0,63292.0,0.080624]
[1724709514224,0.00061986,63293.0,63292.0,0.142424]
[1724709514412,0.00061986,63293.0,63292.0,0.616416]
[1724709514648,0.00061986,63293.0,63292.0,0.932411]
[1724709514851,0.00061986,63293.0,63292.0,0.616416]
[1724709515227,0.00061986,63293.0,63292.0,0.62210766]
[1724709515778,0.00061986,63293.0,63292.0,0.62410766]
[1724709517796,0.00061986,63293.0,63292.0,0.62610766]
[1724709524271,0.00061986,63293.0,63292.0,0.15211566]
[1724709524477,0.00061986,63293.0,63292.0,0.31011266]
[1724709524696,0.20585578,63293.0,63292.0,0.084624]
[1724709524927,0.47460486,63293.0,63292.0,0.084624]
[1724709525129,0.86146641,63293.0,63292.0,0.084624]
[1724709525414,1.23513561,63293.0,63292.0,0.082624]
[1724709525619,1.14107429,63293.0,63292.0,0.082624]
[1724709525820,1.14107429,63293.0,63292.0,0.080624]
[1724709526363,1.14108127,63293.0,63292.0,0.080624]
[1724709526611,1.25923607,63293.0,63292.0,0.080624]
[1724709527133,1.23561406,63293.0,63292.0,0.080624]
[1724709527337,0.86149502,63293.0,63292.0,0.080624]
[1724709527971,0.86151422,63293.0,63292.0,0.080624]
[1724709531143,0.79059486,63293.0,63292.0,0.080624]
[1724709532036,1.23560171,63293.0,63292.0,0.080624]
[1724709533983,1.14106892,63293.0,63292.0,0.080624]
[1724709535618,1.25922372,63293.0,63292.0,0.080624]
[1724709542646,0.94323372,63293.0,63292.0,0.080624]
[1724709542848,0.82507892,63293.0,63292.0,0.144724]
[1724709543046,0.44569277,63293.0,63292.0,0.144724]
[1724709543426,0.35109392,63293.0,63292.0,0.144724]
[1724709544271,0.35109392,63293.0,63292.0,0.145724]
[1724709544673,0.25321371,63293.0,63292.0,0.082624]
[1724709544888,0.44569277,63293.0,63292.0,0.082624]
[1724709545128,0.44569466,63293.0,63292.0,0.082624]
[1724709545314,0.00061986,63293.0,63292.0,0.082624]
[1724709545516,0.15861486,63293.0,63292.0,0.082624]
[1724709545869,0.2295635,63293.0,63292.0,0.082624]
[1724709546116,0.5090785,63293.0,63292.0,0.082624]
[1724709546326,0.60367794,63293.0,63292.0,0.082624]
[1724709546947,1.61574794,63293.0,63292.0,0.082624]
[1724709547156,1.5211485,63293.0,63292.0,0.002824]
[1724709547379,1.95225241,63293.0,63292.0,0.002824]
[1724709547785,1.95225241,63293.0,63292.0,0.001824]
[1724709548318,1.95825241,63293.0,63292.0,0.001824]
[1724709548696,1.95225241,63293.0,63292.0,0.000824]
[1724709548900,1.95944878,63293.0,63292.0,0.001824]
[1724709549428,1.96644878,63293.0,63292.0,0.002824]
[1724709549633,1.95944878,63293.0,63292.0,0.001824]
[1724709550073,1.96844878,63293.0,63292.0,0.002824]
[1724709550911,2.11025061,63293.0,63292.0,0.002824]
[1724709551317,1.68000974,63293.0,63292.0,0.002824]
[1724709552614,1.83818775,63293.0,63292.0,0.002824]
[1724709554392,1.69638592,63293.0,63292.0,0.002824]
[1724709554959,2.01237592,63293.0,63292.0,0.002824]
[1724709558572,2.43161557,63293.0,63292.0,0.002824]
[1724709560303,2.45634631,63293.0,63292.0,0.002824]
[1724709560675,2.43161557,63293.0,63292.0,0.002824]
[1724709567025,2.36751557,63293.0,63292.0,0.085224]
[1724709567233,2.47795781,63293.0,63292.0,0.085224]
[1724709570283,2.47795781,63293.0,63292.0,0.002824]
[1724709571919,2.54035781,63293.0,63292.0,0.002824]
[1724709572818,2.53135781,63293.0,63292.0,0.001824]
[1724709573022,2.54535781,63293.0,63292.0,0.002824]
[1724709573146,2.54123649,63293.0,63292.0,0.002824]
[1724709573361,2.55796745,63293.0,63292.0,0.001824]
[1724709573572,2.55796745,63293.0,63286.0,0.0824]
[1724709573573,1.10668986,63287.0,63286.0,0.0624]
[1724709573772,1.56085094,63287.0,63286.0,0.0624]
[1724709574190,1.98277348,63287.0,63286.0,0.0624]
[1724709574944,1.99077348,63287.0,63286.0,0.0624]
[1724709576322,1.56885094,63287.0,63286.0,0.0624]
[1724709576774,1.57685094,63287.0,63286.0,0.0624]
[1724709577539,1.71851883,63287.0,63286.0,0.0624]
[1724709579186,1.57685094,63287.0,63286.0,0.0624]
[1724709579604,2.05104895,63287.0,63286.0,0.0624]
[1724709580028,2.469676,63287.0,63286.0,0.0624]
[1724709580640,2.49440911,63287.0,63286.0,0.0624]
[1724709581250,2.55850911,63287.0,63286.0,0.0624]
[1724709583136,0.79081986,63275.0,63274.0,0.04923334]
[1724709583335,0.94848192,63275.0,63274.0,0.04923334]
[1724709583533,0.790212,63274.0,63273.0,0.003]
[1724709583753,0.79083186,63274.0,63273.0,0.1431]
[1724709583918,0.83805168,63274.0,63273.0,0.1431]
[1724709584703,1.44369002,63274.0,63273.0,0.0811]
[1724709585104,1.45069002,63274.0,63273.0,0.0811]
[1724709585944,1.44669002,63274.0,63273.0,0.0811]
[1724709586152,1.45769002,63274.0,63273.0,0.0811]
[1724709586413,1.45469002,63274.0,63273.0,0.0811]
[1724709586615,1.46369002,63274.0,63273.0,0.0811]
[1724709586816,0.0641,63273.0,63265.0,0.0811]
[1724709587019,0.15764583,63268.0,63267.0,0.0811]
[1724709587251,0.65541963,63268.0,63267.0,0.0811]
[1724709587631,0.58461424,63268.0,63267.0,0.0811]
[1724709587824,0.65541856,63268.0,63267.0,0.0811]
[1724709588003,0.97153356,63268.0,63267.0,0.0811]
[1724709588171,0.98253356,63268.0,63267.0,0.0811]
[1724709588374,0.98315342,63268.0,63267.0,0.0811]
[1724709588633,0.9253491,63268.0,63267.0,0.0811]
[1724709589633,0.97254548,63268.0,63267.0,0.0811]
[1724709590235,0.9253491,63268.0,63267.0,0.0811]
[1724709590418,0.99615342,63268.0,63267.0,0.0811]
[1724709590619,0.86210535,63268.0,63267.0,0.1431]
[1724709590821,0.81490686,63268.0,63267.0,0.1431]
[1724709591177,0.86210535,63268.0,63267.0,0.1431]
[1724709591537,0.81490686,63268.0,63267.0,0.1431]
[1724709592305,0.86210158,63268.0,63267.0,0.1431]
[1724709592478,0.88571118,63268.0,63267.0,0.1431]
[1724709592684,0.86210789,63268.0,63267.0,0.1431]
[1724709592918,0.86210718,63268.0,63267.0,0.1431]
[1724709593122,0.81490686,63268.0,63267.0,0.1431]
[1724709593327,0.86210636,63268.0,63267.0,0.1431]
[1724709595019,0.81490686,63268.0,63267.0,0.1431]
[1724709595294,0.81490686,63268.0,63267.0,0.143924]
[1724709595630,0.81490686,63268.0,63267.0,0.081924]
[1724709596153,0.9725486,63268.0,63267.0,0.081924]
[1724709597205,0.97254702,63268.0,63267.0,0.081924]
[1724709598725,1.57753885,63268.0,63267.0,0.081924]
[1724709598925,1.26142385,63268.0,63267.0,0.081924]
[1724709599133,1.57753885,63268.0,63267.0,0.081924]
[1724709599771,1.35581969,63268.0,63267.0,0.081924]
[1724709600265,1.67193469,63268.0,63267.0,0.081924]
[1724709600467,0.61314745,63268.0,63267.0,0.081924]
[1724709600675,0.61314745,63268.0,63267.0,0.73024624]
[1724709600676,0.02461986,63268.0,63267.0,0.73024624]
[1724709600893,0.02461986,63268.0,63267.0,0.88642425]
[1724709601134,0.00061986,63273.0,63272.0,0.537842]
[1724709601282,0.00061986,63275.0,63274.0,0.853912]
[1724709601499,0.002,63297.0,63278.0,0.853862]
[1724709601500,0.00061986,63279.0,63278.0,0.853862]
[1724709601658,0.04719661,63299.0,63285.0,0.537745]
[1724709601862,0.00061986,63290.0,63285.0,1.43642525]
[1724709602064,0.00152626,63286.0,63285.0,0.0637]
[1724709603518,0.15953826,63286.0,63285.0,0.0637]
[1724709603952,0.00061986,63276.0,63275.0,0.15804]
[1724709604180,0.00061986,63276.0,63275.0,0.0779]
[1724709604383,0.00061986,63276.0,63275.0,0.1416]
[1724709605202,0.00061986,63276.0,63275.0,0.1466]
[1724709605382,0.00061986,63276.0,63275.0,0.1516]
[1724709605619,0.15865686,63276.0,63275.0,0.1516]
[1724709605826,0.79080686,63276.0,63275.0,0.0879]
[1724709606030,0.83800218,63276.0,63275.0,0.0879]
[1724709606235,0.86159984,63276.0,63275.0,0.0879]
[1724709606443,1.71488483,63276.0,63275.0,0.0879]
[1724709606639,1.83484879,63276.0,63275.0,0.01]
[1724709606844,1.71688483,63276.0,63275.0,0.01]
[1724709607044,1.77928483,63276.0,63275.0,0.005]
[1724709607243,0.79090686,63268.0,63267.0,0.000824]
[1724709608769,0.79090686,63268.0,63267.0,0.001824]
[1724709608974,0.79390686,63268.0,63267.0,0.001824]
[1724709609214,0.79390686,63268.0,63267.0,0.236684]
[1724709609215,0.01061986,63268.0,63267.0,0.236684]
[1724709609424,0.01061986,63268.0,63267.0,0.618504]
[1724709609631,0.01061986,63268.0,63267.0,1.40692201]
[1724709610050,0.01,63268.0,63267.0,1.40692201]
[1724709610255,0.003,63268.0,63267.0,1.40592201]
[1724709610387,0.013,63268.0,63267.0,1.40692201]
[1724709610593,0.00061986,63273.0,63272.0,0.474142]
[1724709610813,0.00061986,63273.0,63272.0,0.616642]
[1724709611020,0.36321824,63284.0,63282.0,0.158022]
[1724709611021,0.00061986,63283.0,63282.0,0.158022]
[1724709611219,0.00061986,63284.0,63283.0,0.15802]
[1724709611449,0.00061986,63284.0,63283.0,0.8669]
[1724709611612,0.0009064,63286.0,63285.0,0.866875]
[1724709611613,0.00152626,63286.0,63285.0,0.866875]
[1724709611836,0.00152626,63286.0,63285.0,1.08875301]
[1724709612040,0.0009064,63286.0,63285.0,1.36553063]
[1724709612659,0.0009064,63286.0,63285.0,1.68156063]
[1724709612831,0.00061986,63291.0,63290.0,0.790012]
[1724709613069,0.00061986,63294.0,63290.0,0.53788301]
[1724709613280,0.00061986,63294.0,63293.0,0.789975]
[1724709613484,0.00061986,63294.0,63293.0,0.866775]
[1724709614102,0.04808764,63305.0,63294.0,0.550777]
[1724709614103,0.00061986,63295.0,63294.0,0.550777]
[1724709616520,0.0009064,63305.0,63301.0,0.157975]
[1724709616908,0.157968,63304.0,63301.0,0.0768]
[1724709617290,0.0009064,63305.0,63301.0,0.0768]
[1724709617509,0.0009064,63305.0,63302.0,0.157972]
[1724709617699,0.0009064,63305.0,63303.0,0.0768]
[1724709617916,0.0029064,63305.0,63303.0,0.0768]
[1724709619469,0.0009064,63305.0,63303.0,0.0768]
[1724709619669,0.0009064,63305.0,63304.0,0.157967]
[1724709619670,0.0039064,63305.0,63304.0,0.157967]
[1724709619889,0.0039064,63305.0,63304.0,0.234767]
[1724709620297,0.0009064,63305.0,63304.0,0.234767]
[1724709620498,0.0049064,63305.0,63304.0,0.234767]
[1724709620698,0.0039064,63305.0,63304.0,0.234767]
[1724709621087,0.0009064,63305.0,63304.0,0.77258001]
[1724709621288,0.0019064,63305.0,63304.0,1.08851501]
[1724709621440,0.0049064,63305.0,63304.0,1.08851501]
[1724709622657,0.0009064,63305.0,63304.0,1.08851501]
[1724709622912,0.0009064,63305.0,63304.0,1.09151501]
[1724709623165,0.0009064,63305.0,63304.0,1.40745001]
[1724709623349,0.0009064,63305.0,63304.0,1.50745001]
[1724709623563,0.0009064,63305.0,63304.0,1.50445001]
[1724709623765,0.0019064,63305.0,63304.0,1.51345001]
[1724709624337,0.0009064,63305.0,63304.0,1.50445001]
[1724709624565,0.0019064,63305.0,63304.0,1.51645001]
[1724709624748,0.0019064,63305.0,63304.0,1.51445001]
[1724709624948,0.0019064,63305.0,63304.0,1.520203]
[1724709625315,0.0019064,63305.0,63304.0,1.530203]
[1724709625526,0.0019064,63305.0,63304.0,1.520203]
[1724709625952,0.0009064,63305.0,63304.0,1.524203]
[1724709626358,0.0009064,63307.0,63306.0,1.105737]
[1724709626555,0.0009064,63307.0,63306.0,1.79939263]
[1724709628474,0.0009064,63307.0,63306.0,1.81339263]
[1724709629512,0.0019064,63307.0,63306.0,1.82739263]
[1724709631258,0.0019064,63307.0,63306.0,2.14331763]
[1724709639138,0.0009064,63313.0,63312.0,1.422527]
[1724709639332,0.0009064,63313.0,63312.0,2.01618263]
[1724709639558,0.0009064,63313.0,63312.0,2.11618263]
[1724709639775,0.0009064,63313.0,63312.0,2.15780912]
[1724709640538,0.0009064,63313.0,63312.0,2.18580912]
[1724709640745,0.0019064,63313.0,63312.0,2.18580912]
[1724709641502,0.0009064,63326.0,63325.0,1.243108]
[1724709641695,0.0009064,63326.0,63325.0,2.11489463]
[1724709641696,0.0008064,63326.0,63325.0,2.11489463]
[1724709641913,0.0008064,63326.0,63325.0,2.15652112]
[1724709642426,0.0008064,63326.0,63325.0,2.15752112]
[1724709642793,0.0008064,63326.0,63325.0,2.17052112]
[1724709643358,0.0008064,63326.0,63325.0,2.15752112]
[1724709644012,0.0008064,63326.0,63325.0,2.18452112]
[1724709644162,0.0008064,63326.0,63325.0,2.14189463]
[1724709644369,0.0008064,63326.0,63325.0,1.81306363]
[1724709645419,0.0008064,63326.0,63325.0,1.79906363]
[1724709645619,0.0008064,63326.0,63325.0,1.81896432]
[1724709645849,0.0008064,63326.0,63325.0,1.83296432]
[1724709646877,0.0008064,63326.0,63325.0,1.81896432]
[1724709647085,0.0008064,63326.0,63325.0,0.64245632]
[1724709647276,0.0008064,63326.0,63325.0,0.3516787]
[1724709647880,0.0008064,63326.0,63325.0,0.3376787]
[1724709648195,0.0008064,63326.0,63325.0,0.3516787]
[1724709648423,0.0008064,63326.0,63325.0,0.4955937]
[1724709648625,0.0008064,63326.0,63325.0,0.8114247]
[1724709648774,0.0008064,63326.0,63325.0,1.1412557]
[1724709649135,0.0008064,63326.0,63325.0,1.1552557]